bitfinex/quotes_SOLUSD_20230116
["timestamp","ask_amount","ask_price","bid_price","bid_amount"]
[1673858682549,20.0,23.004,22.96,21.07]
[1673858682754,36.7047,23.003,22.96,21.07]
[1673858682964,24.0747,23.002,22.96,21.07]
[1673858683164,56.70608,23.001,22.96,21.07]
[1673858683496,20.92,22.99,22.952,112.8717]
[1673858683681,56.72615,22.989,22.94,21.07]
[1673858684005,4.07337,22.988,22.94,21.07]
[1673858684216,32.65,22.987,22.94,21.07]
[1673858684551,32.65,22.987,22.92,21.14]
[1673858684552,20.92,22.97,22.92,21.14]
[1673858684856,20.88,22.96,22.911,117.2471]
[1673858685057,56.75923,22.959,22.911,117.2471]
[1673858685265,4.06923,22.958,22.911,117.2471]
[1673858685473,52.69,22.957,22.911,117.2471]
[1673858685683,20.0,22.955,22.911,117.2471]
[1673858685894,20.92,22.95,22.911,117.2471]
[1673858686099,32.7,22.949,22.911,117.2471]
[1673858686321,20.0,22.948,22.91,0.26002005]
[1673858686532,32.71,22.947,22.91,0.26002005]
[1673858686728,20.0,22.946,22.91,21.33002005]
[1673858686939,32.71,22.945,22.911,4.14438]
[1673858687253,41.46196354,22.944,22.911,4.14438]
[1673858687464,52.71,22.943,22.91,21.33002005]
[1673858687672,52.71,22.943,22.88,20.93]
[1673858687673,24.07615,22.942,22.88,20.93]
[1673858687910,88.35615,22.94,22.87,114.1312]
[1673858688103,56.79615,22.939,22.871,4.15162]
[1673858688300,20.0,22.936,22.871,20.0]
[1673858688516,56.79615,22.935,22.872,4.15144]
[1673858688731,52.72,22.935,22.872,4.15144]
[1673858688953,20.0,22.934,22.872,4.15144]
[1673858689144,52.73,22.933,22.89,21.07]
[1673858689357,20.0,22.932,22.891,4.148]
[1673858689587,32.73,22.931,22.9,21.07]
[1673858689787,32.73,22.931,22.901,4.14619]
[1673858689997,21.07,22.95,22.901,4.14619]
[1673858689998,32.71,22.942,22.92,21.07]
[1673858690210,84.17,22.98,22.93,21.07]
[1673858690211,52.67,22.969,22.93,21.07]
[1673858690406,52.67,22.969,22.94,21.07]
[1673858690616,52.67,22.969,22.93,21.06]
[1673858690870,48.80354542,22.968,22.93,21.06]
[1673858691161,32.68,22.967,22.93,21.07]
[1673858691376,20.0,22.967,22.94,21.07]
[1673858691576,32.68,22.966,22.94,21.07]
[1673858691774,54.14196354,22.966,22.931,4.14076]
[1673858691985,21.46196354,22.965,22.931,24.14076]
[1673858692196,32.68,22.966,22.933,20.0]
[1673858692426,32.44175,22.983,22.94,21.07]
[1673858692617,32.2235,22.983,22.941,4.13896]
[1673858692946,20.0,22.982,22.941,4.13896]
[1673858693159,32.66,22.981,22.95,21.07]
[1673858693370,32.66,22.981,22.951,4.13715]
[1673858693574,32.63,22.998,22.96,21.07]
[1673858693778,21.46196354,22.989,22.961,20.0]
[1673858694109,32.63,22.998,22.962,4.13517]
[1673858694304,41.46196354,22.997,22.962,4.13517]
[1673858694646,32.64,22.996,22.962,4.13517]
[1673858695032,20.0,22.995,22.963,20.0]
[1673858695242,20.0,22.993,22.965,20.0]
[1673858695448,32.64,22.994,22.97,21.07]
[1673858695663,32.62,23.008,22.971,4.13355]
[1673858695878,21.46196354,23.003,22.971,4.13355]
[1673858696100,32.63,23.002,22.971,4.13355]
[1673858696307,20.0,23.001,22.97,21.07]
[1673858696500,32.63,23.0,22.964,20.0]
[1673858696722,20.0,22.999,22.965,20.0]
[1673858696931,32.63,22.998,22.965,4.13463]
[1673858697153,54.09196354,22.998,22.965,4.13463]
[1673858697464,64.3471539,22.997,22.965,4.13463]
[1673858697675,32.64,22.996,22.965,4.13463]
[1673858697983,54.10196354,22.996,22.953,20.0]
[1673858698207,81.21265033,22.995,22.96,21.07]
[1673858698415,32.64,22.994,22.961,4.13535]
[1673858698603,92.39068679,22.994,22.97,21.06]
[1673858698808,32.64,22.994,22.97,25.19373]
[1673858699147,41.46196354,22.993,22.961,20.0]
[1673858699462,20.0,23.001,22.97,21.07]
[1673858699672,32.63,23.0,22.971,24.13355]
[1673858699859,54.08196354,23.008,22.971,19.13337]
[1673858700069,20.0,23.007,22.971,19.13337]
[1673858700276,20.0,22.998,22.967,46.10364635]
[1673858700500,32.64,22.997,22.97,21.07]
[1673858700822,21.46196354,22.999,22.97,21.07]
[1673858701031,32.62,23.006,22.98,20.89]
[1673858701231,21.46196354,23.011,22.98,20.89]
[1673858701441,32.62,23.01,22.98,20.89]
[1673858701759,28.64390906,23.011,22.981,20.0]
[1673858701973,20.0,23.028,22.981,20.0]
[1673858701974,21.46196354,23.014,22.981,20.0]
[1673858702204,52.61,23.013,22.981,20.0]
[1673858702393,64.939317,23.01,22.981,20.0]
[1673858702600,32.62,23.009,22.97,21.07]
[1673858702817,4.07615,23.008,22.97,21.07]
[1673858703031,32.62,23.007,22.97,21.07]
[1673858703226,20.0,23.006,22.97,21.07]
[1673858703430,32.62,23.005,22.97,21.07]
[1673858703642,54.08196354,23.005,22.97,21.07]
[1673858703853,21.46196354,23.005,22.99,21.07]
[1673858704081,41.46196354,23.004,22.971,20.0]
[1673858704506,98.30916433,23.003,22.97,21.06]
[1673858704715,148.53242135,23.003,22.97,21.06]
[1673858704931,115.90242135,23.002,22.97,21.06]
[1673858705121,32.63,23.001,22.971,20.0]
[1673858705339,65.67916433,23.002,22.98,21.07]
[1673858705547,32.6,23.019,22.98,21.07]
[1673858705755,44.21720079,23.0,22.98,21.07]
[1673858705973,32.62,23.006,22.98,21.07]
[1673858706186,20.0,23.005,22.98,21.07]
[1673858706405,52.63,23.004,22.98,21.07]
[1673858706717,44.21720079,23.004,22.98,21.07]
[1673858706931,21.46196354,23.007,22.98,21.07]
[1673858707145,20.0,23.012,22.99,21.07]
[1673858707541,32.62,23.011,22.99,21.07]
[1673858708081,32.61,23.016,22.99,21.07]
[1673858708294,21.46196354,23.015,22.99,21.07]
[1673858708612,32.61,23.016,22.99,21.07]
[1673858708816,20.0,23.015,22.99,21.07]
[1673858709026,32.61,23.014,22.99,21.07]
[1673858709227,20.0,23.013,22.99,21.07]
[1673858709434,20.0,23.011,22.99,21.07]
[1673858709647,32.61,23.012,22.99,21.07]
[1673858709856,20.0,23.039,22.99,21.07]
[1673858709857,32.61,23.016,22.99,21.07]
[1673858710396,32.59,23.027,22.99,21.07]
[1673858710609,20.0,23.026,23.0,21.07]
[1673858710799,32.6,23.025,23.0,21.07]
[1673858711126,20.0,23.024,23.0,21.07]
[1673858711341,32.6,23.023,23.001,20.0]
[1673858711657,32.59,23.027,23.001,20.0]
[1673858712051,32.58,23.038,23.02,21.07]
[1673858712397,20.0,23.05,23.02,21.07]
[1673858712594,32.56,23.049,23.02,21.07]
[1673858712806,54.02196354,23.049,23.02,21.07]
[1673858713006,41.46196354,23.048,23.013,20.0]
[1673858713221,32.56,23.047,23.013,20.0]
[1673858713535,20.0,23.046,23.013,20.0]
[1673858713738,32.57,23.045,23.02,21.07]
[1673858713944,54.03196354,23.045,23.012,119.6154]
[1673858714170,41.46196354,23.044,23.013,20.0]
[1673858714381,32.57,23.043,23.012,119.6154]
[1673858714692,54.03196354,23.043,23.012,119.6154]
[1673858715110,41.46196354,23.042,23.012,119.6154]
[1673858715317,32.57,23.041,23.012,119.6154]
[1673858715533,32.57,23.041,23.013,40.0]
[1673858715752,21.46196354,23.04,23.012,119.6154]
[1673858716063,21.46196354,23.04,23.004,20.0]
[1673858716064,20.0,23.038,23.004,20.0]
[1673858716293,32.58,23.037,23.0,21.07]
[1673858716472,90.31249767,23.037,23.0,21.07]
[1673858716803,49.04196354,23.037,23.0,21.07]
[1673858716996,20.0,23.035,22.998,113.2816]
[1673858717222,21.03,23.03,22.984,116.3176]
[1673858717443,21.07,23.02,22.984,116.3176]
[1673858717758,56.72897,23.019,22.981,113.2816]
[1673858717950,20.0,23.017,22.981,113.2816]
[1673858718162,56.73897,23.016,22.981,113.2816]
[1673858718389,4.12897,23.015,22.981,113.2816]
[1673858718580,32.61,23.014,22.981,113.2816]
[1673858718787,24.12897,23.013,22.971,112.5338]
[1673858719001,20.0,23.009,22.971,112.5338]
[1673858719230,56.74897,23.008,22.971,112.5338]
[1673858719428,4.12897,23.007,22.971,112.5338]
[1673858719644,32.62,23.006,22.971,112.5338]
[1673858719856,24.12897,23.005,22.971,112.5338]
[1673858720059,20.0,23.003,22.971,112.5338]
[1673858720269,52.63,23.002,22.971,112.5338]
[1673858720479,148.89045782,23.002,22.971,112.5338]
[1673858720689,42.92392708,23.001,22.971,112.5338]
[1673858720894,32.62,23.008,22.973,20.0]
[1673858721102,32.62,23.008,22.974,4.46]
[1673858721540,20.0,23.006,22.972,20.0]
[1673858721765,32.62,23.005,22.973,20.0]
[1673858722071,20.0,23.004,22.974,4.46]
[1673858722486,20.0,23.004,22.972,24.461]
[1673858723013,20.0,23.006,22.973,20.0]
[1673858723218,20.0,23.009,22.973,20.0]
[1673858723419,20.0,23.015,22.981,20.0]
[1673858723629,21.46196354,23.013,22.981,20.0]
[1673858723846,32.61,23.014,22.982,20.0]
[1673858724061,20.0,23.013,22.983,20.0]
[1673858724262,32.61,23.012,22.984,20.0]
[1673858724480,20.0,23.011,22.984,20.0]
[1673858724685,20.0,23.011,22.982,20.0]
[1673858724905,32.61,23.012,22.983,20.0]
[1673858725228,21.46196354,23.013,22.981,116.166]
[1673858725541,21.46196354,23.011,22.981,116.166]
[1673858725727,32.62,23.01,22.981,116.166]
[1673858726061,32.61,23.014,22.99,21.07]
[1673858726274,32.59,23.027,22.99,21.07]
[1673858726586,54.05196354,23.027,22.99,21.07]
[1673858726783,21.46196354,23.026,22.99,21.07]
[1673858726995,52.6,23.025,22.992,20.0]
[1673858727215,32.6,23.025,22.993,20.0]
[1673858727431,32.59,23.032,23.01,21.07]
[1673858727638,32.58,23.037,23.01,21.07]
[1673858727965,20.0,23.036,23.01,21.07]
[1673858728154,32.58,23.035,23.01,21.07]
[1673858728365,32.58,23.035,23.001,112.5362]
[1673858728366,20.0,23.034,23.001,112.5362]
[1673858728594,32.58,23.033,23.001,112.5362]
[1673858728926,20.0,23.032,23.002,20.0]
[1673858729244,32.58,23.033,23.01,21.06]
[1673858729427,32.57,23.043,23.011,20.0]
[1673858729637,21.46196354,23.042,23.011,20.0]
[1673858729864,20.0,23.04,23.01,21.06]
[1673858730076,52.58,23.039,22.994,4.027]
[1673858730284,21.07,23.03,22.985,112.5362]
[1673858730481,56.71897,23.029,22.985,112.5362]
[1673858730689,47.62897,23.028,22.985,112.5362]
[1673858730916,20.0,23.025,22.986,20.0]
[1673858731113,36.72897,23.024,22.99,21.07]
[1673858731320,24.12897,23.023,22.99,21.07]
[1673858731529,36.72897,23.022,22.986,20.0]
[1673858731739,20.0,23.02,22.985,112.5362]
[1673858731948,52.6,23.019,22.985,112.5362]
[1673858732186,74.06196354,23.019,22.985,112.5362]
[1673858732376,52.6,23.019,22.985,112.5362]
[1673858732702,21.46196354,23.018,22.985,112.5362]
[1673858732897,20.0,23.016,22.985,112.5362]
[1673858733111,20.0,23.016,22.964,4.032]
[1673858733112,56.73897,23.015,22.97,21.07]
[1673858733315,4.12897,23.014,22.97,21.07]
[1673858733635,20.0,23.012,22.972,113.6778]
[1673858733855,20.0,23.01,22.972,113.6778]
[1673858734177,36.74897,23.009,22.972,113.6778]
[1673858734386,20.0,23.007,22.973,20.0]
[1673858734589,36.74897,23.006,22.972,113.6778]
[1673858734797,20.0,23.004,22.972,113.6778]
[1673858735005,36.75897,23.003,22.972,113.6778]
[1673858735324,20.0,23.001,22.972,113.6778]
[1673858735547,56.75897,23.0,22.972,113.6778]
[1673858735741,20.0,22.999,22.973,20.0]
[1673858736069,36.75897,22.998,22.972,113.6778]
[1673858736261,24.12897,22.997,22.972,113.6778]
[1673858736470,36.76897,22.996,22.973,20.0]
[1673858736704,4.12897,22.996,22.974,20.0]
[1673858737014,20.0,23.001,22.974,20.0]
[1673858737220,58.22093354,23.0,22.974,20.0]
[1673858737839,20.0,22.999,22.974,20.0]
[1673858738257,41.46196354,22.999,22.972,113.6778]
[1673858738468,36.75897,22.998,22.972,113.6778]
[1673858738700,4.12897,22.997,22.972,113.6778]
[1673858738888,4.12897,22.997,22.973,20.0]
[1673858739844,4.12897,22.997,22.98,21.07]
[1673858740057,20.0,23.02,22.98,21.07]
[1673858740255,43.5,23.017,22.98,21.07]
[1673858740465,20.0,23.014,22.981,20.0]
[1673858740688,20.0,23.02,22.991,20.0]
[1673858740689,32.61,23.017,22.991,20.0]
[1673858740886,32.6,23.019,22.991,20.0]
[1673858741093,32.6,23.024,22.991,20.0]
[1673858741316,36.72897,23.024,22.992,112.663]
[1673858741528,32.59,23.028,23.0,20.89]
[1673858741735,32.58,23.038,23.01,21.07]
[1673858741945,36.70897,23.038,23.01,21.07]
[1673858742263,45.59093354,23.037,23.01,21.07]
[1673858742479,36.70897,23.036,23.001,20.0]
[1673858742697,20.0,23.034,23.001,20.0]
[1673858743007,36.70897,23.033,23.001,20.0]
[1673858743200,58.17093354,23.033,23.002,20.0]
[1673858743631,36.70897,23.033,23.003,20.0]
[1673858743845,36.70897,23.033,23.004,20.0]
[1673858744148,20.0,23.032,23.0,20.89]
[1673858744370,165.71897,23.031,22.995,40.84448985]
[1673858744681,165.71897,23.031,22.963,20.0]
[1673858744682,43.5,23.017,22.971,227.7181]
[1673858744893,56.73897,23.016,22.98,20.89]
[1673858745111,24.12897,23.015,22.98,20.89]
[1673858745295,32.61,23.014,22.98,20.89]
[1673858745506,4.12897,23.013,22.98,20.89]
[1673858745840,20.0,23.011,22.98,20.89]
[1673858746057,20.0,23.009,22.98,20.89]
[1673858746268,36.74897,23.008,22.98,20.89]
[1673858746457,114.50865108,23.008,22.98,20.89]
[1673858746665,20.0,23.006,22.98,20.89]
[1673858746887,36.74897,23.005,22.98,20.89]
[1673858747095,24.12897,23.004,22.98,20.89]
[1673858747419,24.12897,23.004,22.974,20.0]
[1673858747420,124.90388833,23.004,22.971,227.7181]
[1673858747614,20.0,23.002,22.971,227.7181]
[1673858747945,178.99585187,23.001,22.971,227.7181]
[1673858748149,4.12897,23.0,22.971,227.7181]
[1673858748357,52.13,22.999,22.971,227.7181]
[1673858748565,4.12897,22.998,22.971,227.7181]
[1673858748887,44.47720079,22.998,22.972,20.0]
[1673858749086,20.0,23.002,22.971,227.7181]
[1673858749299,32.63,23.001,22.971,227.7181]
[1673858749725,20.0,23.0,22.972,20.0]
[1673858749938,32.63,22.999,22.972,20.0]
[1673858750268,32.63,23.001,22.974,20.0]
[1673858750474,32.63,23.001,22.971,227.7181]
[1673858750475,20.0,23.0,22.971,227.7181]
[1673858750688,20.0,22.998,22.971,227.7181]
[1673858750888,32.64,22.997,22.971,227.7181]
[1673858751103,52.63,22.998,22.971,227.7181]
[1673858751304,32.63,23.001,22.971,227.7181]
[1673858751738,32.63,23.001,22.972,40.0]
[1673858751951,20.0,23.039,22.99,21.07]
[1673858752268,4.12897,23.031,22.991,116.5297]
[1673858752585,43.5,23.027,22.991,116.5297]
[1673858752889,43.5,23.025,22.991,116.5297]
[1673858753108,43.5,23.021,22.991,116.5297]
[1673858753327,36.72897,23.02,22.991,116.5297]
[1673858753509,4.12897,23.019,22.991,116.5297]
[1673858753721,32.61,23.018,22.991,116.5297]
[1673858753940,20.0,23.016,22.991,116.5297]
[1673858754160,32.61,23.015,22.991,116.0297]
[1673858754350,20.0,23.014,22.991,116.0297]
[1673858754561,36.73897,23.013,22.991,116.0297]
[1673858754771,24.12897,23.012,22.991,116.0297]
[1673858755001,32.62,23.011,22.984,111.3792]
[1673858755314,24.12897,23.01,22.984,111.3792]
[1673858755632,20.0,23.008,22.984,111.3792]
[1673858755822,56.74897,23.007,22.984,111.3792]
[1673858756559,20.0,23.005,22.984,111.3792]
[1673858756767,52.63,23.004,22.97,21.07]
[1673858756976,4.12897,23.003,22.97,21.07]
[1673858757192,20.0,23.001,22.97,21.07]
[1673858757413,36.75897,23.0,22.97,21.07]
[1673858757624,20.0,22.998,22.97,21.07]
[1673858757837,36.76897,22.997,22.97,21.07]
[1673858758047,20.0,22.996,22.97,21.07]
[1673858758257,20.0,23.001,22.97,21.07]
[1673858758469,32.63,23.004,22.97,21.07]
[1673858758976,43.5,23.003,22.961,20.0]
[1673858759185,43.5,23.001,22.962,119.8622]
[1673858759391,32.63,23.0,22.965,7.61211678]
[1673858759608,20.0,22.998,22.972,20.0]
[1673858759931,20.0,22.997,22.98,21.07]
[1673858760349,32.64,22.996,22.96,41.19]
[1673858760564,20.0,22.994,22.96,41.19]
[1673858760889,24.12897,22.993,22.96,21.19]
[1673858761102,36.76897,22.992,22.96,21.19]
[1673858761411,20.0,22.99,22.963,20.0]
[1673858761624,32.65,22.989,22.963,20.0]
[1673858761834,10.18000074,22.989,22.97,21.07]
[1673858762029,77.90597699,22.997,22.98,21.07]
[1673858762355,43.5,23.017,22.98,21.07]
[1673858762557,20.0,23.004,22.98,21.07]
[1673858762972,24.12897,23.008,22.98,21.07]
[1673858763182,20.0,23.007,22.98,21.07]
[1673858763399,20.0,23.008,22.98,21.07]
[1673858763609,32.62,23.007,22.98,21.07]
[1673858764031,41.46196354,23.008,22.98,21.07]
[1673858764241,20.0,23.01,22.98,21.07]
[1673858764445,20.0,23.01,22.981,20.0]
[1673858764663,20.0,23.009,23.0,631.374446]
[1673858764874,20.0,23.011,23.0,631.374446]
[1673858765086,20.0,23.012,23.0,631.374446]
[1673858765284,32.62,23.011,23.0,631.374446]
[1673858765484,20.0,23.01,23.0,631.374446]
[1673858765695,54.08196354,23.011,23.0,631.374446]
[1673858765927,32.61,23.015,23.0,631.374446]
[1673858766126,20.0,23.026,23.0,631.374446]
[1673858766127,21.46196354,23.014,23.0,631.374446]
[1673858766340,20.0,23.026,23.0,631.374446]
[1673858766341,32.61,23.013,23.0,631.374446]
[1673858766547,32.6,23.021,23.001,20.0]
[1673858766762,4.12897,23.02,23.001,20.0]
[1673858766967,32.6,23.019,23.001,20.0]
[1673858767179,20.0,23.039,23.001,20.0]
[1673858767180,32.6,23.025,23.001,20.0]
[1673858767399,20.0,23.03,23.001,20.0]
[1673858767589,36.71897,23.029,23.002,119.6364]
[1673858767802,4.12897,23.029,23.01,21.07]
[1673858768033,32.58,23.036,23.01,21.07]
[1673858768243,24.12897,23.035,23.01,21.07]
[1673858768460,36.70897,23.034,23.01,21.07]
[1673858768652,4.12897,23.033,23.01,21.07]
[1673858768983,32.59,23.032,23.011,20.0]
[1673858769181,32.58,23.036,23.011,20.0]
[1673858769387,20.0,23.038,23.011,20.0]
[1673858769610,36.70897,23.037,23.01,21.07]
[1673858769935,4.12897,23.036,23.01,21.07]
[1673858770115,32.55,23.057,23.01,20.27]
[1673858770329,21.46196354,23.041,23.02,20.89]
[1673858770541,52.55,23.055,23.02,20.89]
[1673858770761,4.12897,23.054,23.02,20.89]
[1673858770977,32.56,23.053,23.02,20.89]
[1673858771169,4.12897,23.052,23.022,20.0]
[1673858771376,32.56,23.051,23.03,20.89]
[1673858771610,54.02196354,23.051,23.03,20.89]
[1673858771800,4.12897,23.052,23.03,20.89]
[1673858772221,32.55,23.057,23.03,20.89]
[1673858772447,4.12897,23.056,23.031,20.0]
[1673858772653,32.55,23.055,23.031,20.0]
[1673858772851,4.12897,23.056,23.031,20.0]
[1673858773270,32.55,23.055,23.03,20.89]
[1673858773494,24.12897,23.054,23.03,20.89]
[1673858773826,32.56,23.053,23.03,20.89]
[1673858774144,32.54,23.063,23.03,20.89]
[1673858774356,4.12897,23.062,23.031,20.0]
[1673858774548,32.55,23.061,23.031,20.0]
[1673858774753,20.0,23.059,23.03,20.89]
[1673858774967,120.0,23.049,23.03,20.89]
[1673858775179,20.0,23.048,23.03,20.89]
[1673858775410,4.12897,23.048,23.024,20.0]
[1673858775596,52.55,23.055,23.024,20.0]
[1673858775807,120.0,23.058,23.04,21.07]
[1673858776017,32.54,23.064,23.04,21.07]
[1673858776232,32.53,23.072,23.04,21.07]
[1673858776441,24.12897,23.071,23.041,20.0]
[1673858776653,36.65897,23.07,23.041,20.0]
[1673858776858,4.12897,23.069,23.041,20.0]
[1673858777184,32.54,23.068,23.04,21.07]
[1673858777387,36.66897,23.068,23.041,20.0]
[1673858777601,36.66897,23.068,23.062,7.458596]
[1673858777818,4.12897,23.068,23.062,7.458596]
[1673858778140,27.458596,23.037,23.0,631.374446]
[1673858778339,27.458596,23.037,23.015,20.0]
[1673858778548,84.23707135,23.036,23.015,20.0]
[1673858778758,27.458596,23.037,23.016,32.61]
[1673858778969,27.458596,23.037,23.03,21.07]
[1673858779384,101.2514986,23.037,23.021,20.0]
[1673858779595,68.19446346,23.037,23.021,20.0]
[1673858779813,32.55703514,23.036,23.021,20.0]
[1673858780012,68.19446346,23.037,23.021,20.0]
[1673858780341,41.23586746,23.036,23.021,20.0]
[1673858780962,26.958596,23.037,23.03,20.89]
[1673858781181,32.54,23.062,23.031,20.0]
[1673858781497,32.54,23.062,23.03,20.89]
[1673858781498,20.0,23.06,23.022,20.0]
[1673858781717,56.67897,23.059,23.022,20.0]
[1673858781925,24.12897,23.058,23.022,20.0]
[1673858782234,56.67897,23.057,23.022,20.0]
[1673858782430,24.12897,23.056,23.022,20.0]
[1673858782641,56.67897,23.055,23.023,108.9493]
[1673858782850,20.0,23.054,23.023,108.9493]
[1673858783066,20.0,23.054,23.02,20.87]
[1673858783067,56.68897,23.053,23.01,134.4925]
[1673858783266,20.95,23.05,23.01,134.4925]
[1673858783481,56.68897,23.049,23.01,134.4925]
[1673858783691,4.12897,23.048,23.01,113.4225]
[1673858783901,32.57,23.047,23.01,134.4925]
[1673858784106,20.0,23.045,23.015,20.0]
[1673858784442,125.7066239,23.044,23.01,134.4925]
[1673858784638,147.16858744,23.044,23.01,134.4925]
[1673858784843,73.1366239,23.043,23.01,134.4925]
[1673858785059,20.0,23.041,23.011,20.0]
[1673858785281,56.70897,23.04,23.011,20.0]
[1673858785480,20.0,23.039,23.011,20.0]
[1673858785691,52.58,23.038,23.011,20.0]
[1673858785900,56.70897,23.038,23.011,20.0]
[1673858786117,97.94483746,23.038,23.015,20.0]
[1673858786319,41.23586746,23.037,23.015,20.0]
[1673858786529,20.0,23.036,23.015,20.0]
[1673858786750,74.04196354,23.036,23.015,20.0]
[1673858786940,30.45845311,23.035,23.015,20.0]
[1673858787152,71.69432057,23.035,23.02,21.07]
[1673858787368,41.23586746,23.035,23.021,20.0]
[1673858787579,32.56,23.051,23.021,20.0]
[1673858787798,40.63349946,23.046,23.03,21.07]
[1673858788010,21.46196354,23.052,23.03,21.07]
[1673858788207,21.19809854,23.052,23.021,20.0]
[1673858788417,30.45845311,23.045,23.021,20.0]
[1673858788642,34.58742311,23.045,23.021,20.0]
[1673858788972,40.63349946,23.044,23.021,20.0]
[1673858789165,32.56,23.05,23.021,20.0]
[1673858789375,19.5,23.049,23.021,20.0]
[1673858789585,32.56,23.055,23.021,20.0]
[1673858789805,32.05,23.059,23.03,21.07]
[1673858790014,21.46196354,23.055,23.031,116.2059]
[1673858790235,32.54,23.064,23.032,20.0]
[1673858790417,20.0,23.072,23.032,20.0]
[1673858790418,25.59093354,23.063,23.032,20.0]
[1673858790631,36.67897,23.062,23.032,20.0]
[1673858791153,21.46196354,23.061,23.032,20.0]
[1673858791369,32.53,23.071,23.04,20.89]
[1673858791579,21.46196354,23.069,23.04,20.89]
[1673858791804,32.54,23.068,23.04,20.89]
[1673858792222,21.46196354,23.067,23.041,20.0]
[1673858792542,32.54,23.066,23.041,20.0]
[1673858792953,70.46949946,23.066,23.041,20.0]
[1673858793159,32.53,23.07,23.041,20.0]
[1673858793371,20.0,23.069,23.041,20.0]
[1673858793690,32.53,23.07,23.05,21.07]
[1673858793904,141.46196354,23.073,23.05,21.07]
[1673858794103,141.46196354,23.073,23.051,20.0]
[1673858794104,21.46196354,23.073,23.051,20.0]
[1673858794306,32.51,23.084,23.06,21.07]
[1673858794520,21.46196354,23.087,23.06,21.07]
[1673858794769,21.46196354,23.083,23.061,20.0]
[1673858795470,32.5,23.094,23.061,20.0]
[1673858795688,4.12897,23.093,23.062,108.8499]
[1673858796043,32.5,23.092,23.062,108.8499]
[1673858796217,24.12897,23.091,23.063,20.0]
[1673858796539,36.63897,23.09,23.063,20.0]
[1673858796724,38.5,23.089,23.063,20.0]
[1673858796933,32.51,23.088,23.063,20.0]
[1673858797363,32.51,23.088,23.07,21.06]
[1673858797364,21.46196354,23.088,23.07,21.06]
[1673858797580,32.47,23.116,23.07,21.06]
[1673858797777,21.46196354,23.102,23.07,21.06]
[1673858797992,32.49,23.101,23.071,112.6123]
[1673858798216,32.49,23.101,23.072,20.0]
[1673858798415,25.59093354,23.1,23.072,20.0]
[1673858798627,32.49,23.099,23.072,20.0]
[1673858798830,20.0,23.098,23.072,20.0]
[1673858799048,32.5,23.097,23.071,112.6123]